Cogmind - Beta 15 *** ADVENTURER MODE // 2025.07.29 @ 08:27:36 Player: LegoMDS Result: Destroyed by Piercing Trap Performance ------------- Evolutions (0) 0 Regions Visited (2) 400 Robots Destroyed (23) 115 Value Destroyed (502) 502 Prototype IDs (3) 60 Alien Tech Used (0) 0 Bonus (0) 0 TOTAL SCORE: 1077 Bonus ------- None Cogmind --------- Core Integrity 0/250 Matter 223/300 Energy 199/200 System Corruption 1% Temperature Cool (0) Movement Rolling (120) Ox1 Location -10/Subcaves Parts ------- > --- POWER (1) -------- Subdweller Power Source > --- PROPULSION (2) --- Subdweller Monowheel Subdweller Monowheel > --- UTILITY (2) ------ Large Storage Unit Subdweller Optics > --- WEAPON (2) ------- Battle Cannon Hammer > --- INVENTORY (15) --- Subdweller Power Source Subdweller Monowheel Targeting Computer Scrap Shield Subdweller Laser Makeshift Shrapnel Gun Light Cannon Mini Grenade Launcher Datajack Enhanced Flamer Scrap Shield Fragment (47) Scrap Shield Fragment (41) Scrap Shield Fragment (38) Peak State ------------ > --- POWER ------------ Subdweller Power Source > --- PROPULSION ------- Subdweller Monowheel Subdweller Monowheel > --- UTILITY ---------- Large Storage Unit Subdweller Optics > --- WEAPON ----------- Battle Cannon Hammer > --- INVENTORY -------- Subdweller Power Source Subdweller Monowheel Targeting Computer Scrap Shield Subdweller Laser Makeshift Shrapnel Gun Light Cannon Mini Grenade Launcher Datajack Flamer Enhanced Flamer Scrap Shield Fragment Scrap Shield Fragment Scrap Shield Fragment [Rating: 15] Favorites ----------- Power Light Ion Engine Engine Light Ion Engine Propulsion Subdweller Monowheel Wheel Subdweller Monowheel Utility Large Storage Unit Device Subdweller Optics Storage Large Storage Unit Protection Power Shielding Weapon Assault Rifle Energy Gun Medium Laser Ballistic Gun Assault Rifle Ballistic Cannon Battle Cannon Special Weapon Plasma Cutter Impact Weapon Hammer Special Melee Weapon Datajack Build | -11 -10 -10 ------- Run | Yrd Mat Sub Slots Evolved . | . . . Power . | . . . Propulsion . | . . . Utility . | . . . Weapon . | . . . Parts Attached 26 | 7 4 15 Power 4 | 1 1 2 Engine 4 | 1 1 2 Core . | . . . Reactor . | . . . Propulsion 6 | 2 . 4 Treads . | . . . Leg . | . . . Wheel 6 | 2 . 4 Hover . | . . . Flight . | . . . Utility 5 | 1 1 3 Device 2 | . . 2 Storage 2 | 1 1 . Processor . | . . . Hackware . | . . . Protection 1 | . . 1 Artifact . | . . . Weapon 11 | 3 2 6 Energy Gun 2 | 2 . . Energy Cannon . | . . . Ballistic Gun 4 | 1 1 2 Ballistic Cannon 2 | . . 2 Launcher . | . . . Special Weapon 1 | . . 1 Impact Weapon 1 | . . 1 Slashing Weapon . | . . . Piercing Weapon . | . . . Special Melee Weapon 1 | . 1 . Unidentified Prototypes . | . . . Parts Lost 6 | . . 6 Power 2 | . . 2 Propulsion 3 | . . 3 Utility . | . . . Weapon 1 | . . 1 Highest Loss Streak 4 | . . 4 To Critical Strikes . | . . . Average Backups 9 | 2 7 11 Power 1 | 1 1 1 Propulsion . | . . . Utility 1 | . 1 1 Weapon 4 | 1 3 5 Tool/Special . | . . . Unused Backups 10 | . 1 9 Power 1 | . . 1 Propulsion . | . . . Utility 2 | . . 2 Weapon 7 | . 1 6 Tool/Special . | . . . Average Slot Usage (%) 91 | . 86 94 Engine 12 | . 14 11 Wheel 27 | . 28 27 Device 7 | . . 11 Storage 14 | . 15 14 Energy Gun 6 | . 12 2 Ballistic Gun 11 | . 14 10 Ballistic Cannon 1 | . . 2 Special Weapon 1 | . . 3 Impact Weapon 5 | . . 9 Peak Build Rating 15 | 6 7 15 Average Rating 9 | 3 6 11 On Entrance 4 | . 6 7 Naked Turns . | . . . Heaviest Build 32 | 11 32 32 Greatest Support 40 | 26 26 40 Greatest Overweight (x) 1 | . 1 1 Average Overweight (x) . | . . . Largest Inventory Capacity 15 | 8 15 15 Average Capacity 14 | 5 14 15 Most Carried 15 | 5 10 15 Average Carried 10 | 2 7 12 Final Capacity 15 | 8 15 15 Final Carried 14 | 2 10 14 Class Distribution -------------------- 100% | Mutant Dominant Class ---------------- Mutant | -10/Materials Mutant | -10/Subcaves Resources | -11 -10 -10 ----------- Run | Yrd Mat Sub Matter Collected 742 | 211 174 357 Remotely . | . . . Salvage Created 603 | . 259 344 Parts 43 | . 26 17 Haulers Intercepted 2 | . 2 . Recyclers Shooed . | . . . Parts Field Recycled . | . . . Retrieved Matter . | . . . Parts Self-Destructed 12 | . . 12 Prevented . | . . . Kills | -11 -10 -10 ------- Run | Yrd Mat Sub Combat Hostiles Destroyed 18 | . 9 9 Guns 15 | . 9 6 Cannons 1 | . . 1 Classes Destroyed 4 | . 3 1 Hauler 2 | . 2 . Watcher 3 | . 3 . Swarmer 9 | . 9 . Subdweller 9 | . . 9 Best Kill Streak 3 | . 3 2 Combat Bots Only 3 | . 3 2 Max Kills in Single Turn 2 | . 2 1 Gunslinging 1 | . 1 . Exploded . | . . . Melee . | . . . Uniques/NPCs Destroyed . | . . . Combat | -11 -10 -10 -------- Run | Yrd Mat Sub Hostile Shots Fired 102 | . 30 72 Missed 30 | . 8 22 Hits 72 | . 22 50 Projectile 72 | . 22 50 Critical Strikes 2 | . 1 1 Damage Taken 1068 | . 121 947 Core 255 | . 28 227 Absorbed by Shields . | . . . Ignored by Resistances 291 | . 44 247 Core Remaining (%) 100 | 100 . . Volleys Fired 65 | . 23 42 Largest 2 | . 2 2 Hottest 70 | . 70 70 Shots Fired 118 | . 44 74 Gun 107 | . 44 63 Cannon 11 | . . 11 Launcher . | . . . Special . | . . . Kinetic 90 | . 23 67 Thermal 28 | . 21 7 Explosive . | . . . Electromagnetic . | . . . Robot Hit Streak 21 | . 7 21 Robot Miss Streak 3 | . 3 3 Penetration Max . | . . . Secondary Targets 4 | . 4 . Max Gunslinging Chain 1 | . 1 . Shots Hit Robots 107 | . 30 77 Core Hits 30 | . 14 16 Critical Kills 1 | . . 1 Critical Parts Destroyed 1 | . . 1 Critical Strikes 8 | . 3 5 Burn 4 | . 3 1 Destroy 1 | . . 1 Smash 3 | . . 3 Melee Attacks 21 | . 1 20 Impact 20 | . . 20 Slashing . | . . . Piercing . | . . . Sneak Attacks 1 | . 1 . Combat Hostiles . | . . . Follow-up Attacks . | . . . Damage Inflicted 1391 | . 393 998 Guns 912 | . 393 519 Cannons 161 | . . 161 Explosions . | . . . Melee 318 | . . 318 Ramming . | . . . Kinetic 777 | . 183 594 Thermal 296 | . 210 86 Explosive . | . . . Electromagnetic . | . . . Impact 318 | . . 318 Slashing . | . . . Piercing . | . . . Highest Corruption 1 | . 1 1 Average Corruption 1 | . 1 1 Corruption Purged . | . . . Corruption Blocked . | . . . Effects 13 | . 3 10 Message Errors 3 | . 1 2 Matter Fused 7 | . . 7 Data Loss (minor) 1 | . 1 . Alerts 2 | . 1 1 Overload Shots . | . . . Overflow Damage 47 | . . 47 Projectiles . | . . . Explosions . | . . . Melee 47 | . . 47 Knockbacks 3 | . . 3 Impact 2 | . . 2 Kinetic 1 | . . 1 Secondary . | . . . Self-Inflicted Damage . | . . . Shots . | . . . Rammed . | . . . Targets Rammed . | . . . Kicked . | . . . Crushed . | . . . Highest Temperature 176 | . 60 176 Average Temperature 22 | . 17 92 Received Heat Transfer 402 | . . 402 Siege Activations . | . . . Martial Activations . | . . . Shielding Activations . | . . . Robots Disrupted . | . . . Combat Hostiles . | . . . Robots Corrupted 2 | . . 2 Combat Hostiles 2 | . . 2 Parts Fried 3 | . 2 1 Impact Corruptions 3 | . . 3 Robots Melted . | . . . Combat Hostiles . | . . . Parts Melted 3 | . 2 1 Heat Transferred 1184 | . 851 333 Parts Sabotaged . | . . . Parts Stolen . | . . . Parts Stripped . | . . . Power Chain Reactions . | . . . Alert | -11 -10 -10 ------- Run | Yrd Mat Sub Maximum Alert Level . | . . . Low Security (%) 100 | 100 100 . Level 1 . | . . . Level 2 . | . . . Level 3 . | . . . Level 4 . | . . . Level 5 . | . . . High Security . | . . . Max Security . | . . . Peak Influence 95 | . 95 . Initial . | . . . Average 22 | . 23 . Influence Increases 281 | . 281 . Destroy 0b10 Robot/C 180 | . 180 . Destroy 0b10 Robot/NC 25 | . 25 . Destroy Leader 40 | . 40 . Trap Triggered on 0b10 10 | . 10 . Successful Hack 26 | . 26 . Influence Decreases 281 | . 281 . Time Decay 281 | . 281 . Squads Dispatched . | . . . Investigation . | . . . Extermination . | . . . Reinforcement . | . . . Assault . | . . . Garrison . | . . . Intercept . | . . . Searches Triggered . | . . . Construction Impeded . | . . . Haulers Reinforced . | . . . Active Scanning Responses . | . . . Cargo Convoy Interrupts . | . . . Stealth | -11 -10 -10 --------- Run | Yrd Mat Sub Distress Signals . | . . . Communications Jammed . | . . . Distress Signals . | . . . Times Spotted 21 | . 12 9 Peak Tracking Total 3 | . 3 2 Tactical Retreats . | . . . Traps | -11 -10 -10 ------- Run | Yrd Mat Sub Traps Triggered 2 | . 1 1 Indirectly . | . . . Trap Hack Attempts 8 | . 8 . Triggered 1 | . 1 . Disarmed . | . . . Reprogrammed 1 | . 1 . Reused 1 | . 1 . Traps Extracted . | . . . Installed . | . . . Triggered 1 | . 1 . Machines | -11 -10 -10 ---------- Run | Yrd Mat Sub Machines Disabled . | . . . Max in Single Turn . | . . . Machines Repaired . | . . . Machines Dismantled . | . . . Machines Sabotaged . | . . . Overloaded Fab Kills . | . . . Hacking | -11 -10 -10 --------- Run | Yrd Mat Sub Machines Accessed 6 | . 6 . Terminals 6 | . 6 . Fabricators . | . . . Repair Stations . | . . . Recycling Units . | . . . Scanalyzers . | . . . Garrison Access . | . . . Total Hacks 14 | . 14 . Successful 8 | . 8 . Failed 6 | . 6 . Catastrophic 1 | . 1 . Database Lockouts . | . . . Manual 1 | . 1 . Terminals 14 | . 14 . Fabricators . | . . . Repair Stations . | . . . Recycling Units . | . . . Scanalyzers . | . . . Garrison Access . | . . . Terminal Hacks 8 | . 8 . Prototype ID Bank 2 | . 2 . Branch Access Points 1 | . 1 . Hauler Manifests 2 | . 2 . Registered Components 1 | . 1 . Zone Layout 2 | . 2 . Fabricator Hacks . | . . . Repair Station Hacks . | . . . Recycling Unit Hacks . | . . . Scanalyzer . | . . . Garrison Access Hacks . | . . . Unauthorized Hacks . | . . . Terminals . | . . . Fabricators . | . . . Repair Stations . | . . . Recycling Units . | . . . Scanalyzers . | . . . Garrison Access . | . . . Data Cores Recovered . | . . . Used . | . . . Hacking Detections 3 | . 3 . Full Trace Events 2 | . 2 . Feedback Events . | . . . Feedback Blocked . | . . . Robot Schematics Acquired . | . . . Robots Built . | . . . Authchips . | . . . Time . | . . . Total Robot Build Rating . | . . . Part Schematics Acquired . | . . . Parts Built . | . . . Authchips . | . . . Time . | . . . Total Part Build Rating . | . . . Parts Repaired . | . . . Time . | . . . Parts Recycled . | . . . Recycled Matter . | . . . Retrieved Matter . | . . . Retrieved Components . | . . . Parts Scanalyzed . | . . . Part Schematics Acquired . | . . . Parts Damaged . | . . . Bothacking | -11 -10 -10 ------------ Run | Yrd Mat Sub Used RIF Installer . | . . . Robots Hacked 1 | . 1 . Non-combat 1 | . 1 . Combat . | . . . Robot Hacks Applied 1 | . 1 . parse_system 1 | . 1 . Relay Couplers Released . | . . . Fabnet Peak Effective % . | . . . Robots Rewired . | . . . Allies Hacked . | . . . Hacks Repelled . | . . . Allies | -11 -10 -10 -------- Run | Yrd Mat Sub Total Allies . | . . . Largest Group . | . . . Highest-Rated Group . | . . . Highest-Rated Ally . | . . . Total Orders . | . . . Ally Attacks . | . . . Total Damage . | . . . Kills . | . . . Allies Corrupted . | . . . Allies Melted . | . . . Intel | -11 -10 -10 ------- Run | Yrd Mat Sub Active Infowar (turns) 1300 | . . 1300 Optics 1300 | . . 1300 Robot Analysis Total . | . . . Derelict Logs Recovered 2 | . . 2 Drone Launches . | . . . Drone Recoveries . | . . . Exploration | -11 -10 -10 ------------- Run | Yrd Mat Sub Turns Passed 2519 | 46 944 1529 Spaces Moved 1986 | 37 768 1181 Core 4 | 4 . . Treads . | . . . Legs . | . . . Wheels 1982 | 33 768 1181 Hover . | . . . Flight . | . . . Fastest Speed 50 | 50 90 105 Average Speed 106 | 85 103 109 Slowest Speed 120 | 90 105 120 Overloaded Moves . | . . . Propulsion Burnouts . | . . . Robots Hopped . | . . . Potential Cave-ins . | . . . Cave-ins Triggered . | . . . Exploration Rate (%) 54 | 3 97 62 Regions Visited 2 Branch Regions 1 Pre-discovered Areas 1 | . . 1 Known Exits Taken . | . . . Unknown Exits Taken 2 | 1 1 . Scrap Searched 5 | . . 5 Spaces Dug 2 | . . 2 Terrain Destroyed 2 | . . 2 Melee 2 | . . 2 Projectile . | . . . AOE . | . . . Terrain Rammed . | . . . Walls Destroyed . | . . . Machines Disabled . | . . . Actions | -11 -10 -10 --------- Run | Yrd Mat Sub Total 2242 | 50 874 1318 Wait 80 | . 52 28 Move 1984 | 36 767 1181 Hop . | . . . Pick Up 38 | 7 13 18 Fast Attach 2 | 1 . 1 Attach 16 | 5 3 8 Detach . | . . . Swap 14 | 1 2 11 Drop 14 | . 5 9 Fire 65 | . 23 42 Melee 21 | . 1 20 Ram . | . . . Kick . | . . . Crush . | . . . Escape Stasis . | . . . Rewire . | . . . Trap 8 | . 8 . Miscellaneous . | . . . Route ------- -11/Scrapyard -10/Materials (discovered 5 exits: [*Mat x3] / *Min / [*Sub]) -10/Subcaves (discovered 2 exits: [*Mat x2]) History --------- Turn | Location | Event 31 | -11/Scrapyard | Discovered new exit (range 14) 47 | -11/Scrapyard | Entered Materials 247 | -10/Materials | Discovered new exit (range 20) 310 | -10/Materials | Build established: Mutant 358 | -10/Materials | Identified exit to Mines 425 | -10/Materials | Discovered new exit (range 9) 509 | -10/Materials | Discovered new exit (range 13) 823 | -10/Materials | Discovered new exit (range 5) 991 | -10/Materials | Entered Subcaves 1036 | -10/Subcaves | Curiously followed by a Cobbler waking with a query about "LVR3C" 1240 | -10/Subcaves | Learned location of Recycling (-9) 1316 | -10/Subcaves | Discovered new exit (range 17) 1464 | -10/Subcaves | Learned Materials interactive machine intel 1523 | -10/Subcaves | Shifting Twisted Machinery released Sub. Power Source 1539 | -10/Subcaves | A swath of the cavern ceiling suddenly collapsed 1541 | -10/Subcaves | Shifting Twisted Machinery released Scrap Shield 1583 | -10/Subcaves | Shifting Twisted Machinery released Sub. Monowheel 1682 | -10/Subcaves | Discovered new exit (range 18) 1709 | -10/Subcaves | Shifting Twisted Machinery released Flamer 1712 | -10/Subcaves | Shifting Twisted Machinery released Piercing Trap 1777 | -10/Subcaves | Core integrity fell below 50% 1795 | -10/Subcaves | Core integrity fell below 20% 1809 | -10/Subcaves | Lost 4 parts (1p2n1w) 2520 | -10/Subcaves | Destroyed by Piercing Trap Last Messages --------------- Dropped Battle Rifle. Acquired Battle Cannon. System corrupted: IFF burst signal emitted. K9-X84(O) puts together Battle Cannon. ISX>SSPMCC2&ZQUUNSUSO#4MEYNYY8 L1&6T Searching scrap... Found Enh. Flamer. Found 68 Matter. Acquired 68 matter. Searching scrap... Found Sub. Machine Gun. Found Shrapnel Trap. Found 38 Matter. Acquired 38 matter. Dropped Plasma Cutter. Acquired Enh. Flamer. Dropped Flamer. Triggered Piercing Trap. Spikes shoot up from the floor. Critical hit (Impale). Map ----- +----------------------------------------------------+ | ??????????????????????????????????? | | ??????????????????????????????????? | | ??????????????????????????????????? | | ??????????????????????????????????? | | ????????????????????????????##????? | | ???????????????????????????## ???? | | ?????????????????????????? ??? | | ?????????????????????????? ? ?? | | ????????????????????????? ?? ? | | ???????????????????##??? ??? # | | ?????????????????## ### ????# | | ????????????????? ?? ????#" | | ?????????##????## ???? ##### | | ?????????$"##??# ?????# ? | | ?????????# ""?## ???????# ??? | | ?????????#" ?# ????????? ??? | | ?????????#" ###" #?????????## ##?? | | ??????????# #<< #??????#### #?? | | ??????????# #??????? ### | | ??????????# #????????? | | ??????????# #" #??????????# | | ?????????### ## #?????###??# # | | ?????????#< # ####### #??# ## | | ?????????#[ ## ## ## ##?# # | | ??????# ## ||<## # ### | | ??????# <<@ <### # | | ??????#<<<< ### # # | | ??????#######?# ### | | ??????????????# #?? | | ??????????????#" ### ## ###?? | | ??????????????### #?#### ####???? | | ????????????????#" #????###??????? | | ????????????????#####?????????????? | | ??????????????????????###?????????? | | ??????????????????????# ##????????? | | ?????????????????????## #####????? | | ?????????????????????#" """ ##???? | | ?????????????????????#" #???? | | ?????????????????######" ###?? | | ????????????????##" ##" """" ### | | ????????????????# "" """ | | ????????????????##" """" ![ | | ?????????????????##### """" !] | | ?????????????????????#""" "[![ | | ?????????????????????# " | | ?????????????????????# "### | | ?????????????????????# ##?# | | ?????????????????????## ##?## | | ??????????????????????# ##??# | | ?????????????????????# #???# | +----------------------------------------------------+ Best States ------------- Heat Dissipation 25 Energy Generation 15 Energy Capacity 250 Matter Stores 300 Matter Capacity 300 Sight Range 21 Terrain Scan Density 10 Resistance: KI 20 Resistance: TH 20 Resistance: EX 20 Resistance: EM 20 Resistance: I 20 Resistance: S 20 Resistance: P 20 Evasion (%) 42 Offensive Hacking 10 Item Schematics ----------------- None Robot Schematics ------------------ None Fabricated ------------ Nothing Repaired ---------- Nothing Alien Tech Used ----------------- None Achievements -------------- None Challenges ------------ None Game ------ Seed TransportNodeGravjet Manual? 0 Play Time 00:20:38 Cumulative 87.0 hours Start 2025.07.29 @ 08:10:29 End 2025.07.29 @ 08:27:36 Sessions 1 Manual Loads 0 Difficulty Adventurer Special Mode None Game No. 117 Rogue 13 Adventurer 104 Explorer 0 Win Type - Total 0 Types 0/0/0/0/0/0/0/0/0/0 Lore% 64 Gallery% 59 Achievement% 46 Wizard Run 0 Options --------- Layout 1 ASCII 0 Keyboard 0 Movement Mouse Keybinds 0 Fullscreen 1 Font 32/SmallcapsGlow Map View 50x35 Zoom Use 0% Tactical HUD 0 Map Filters NONE Filters NONE Steam 1 RUN: ad760131-3b3a-4711-b70c-c2dc0ac909c0